bitfinex-derivatives/quotes_BTCF0:USTF0_20250709
["timestamp","ask_amount","ask_price","bid_price","bid_amount"]
[1752036251251,0.43620718,108570.0,108560.0,0.64334147]
[1752036252241,0.45242718,108570.0,108560.0,0.64334147]
[1752036252442,0.43620718,108570.0,108560.0,0.64334147]
[1752036253143,0.43620718,108570.0,108560.0,0.64434147]
[1752036253747,0.43620718,108570.0,108560.0,0.61582038]
[1752036253951,0.45242718,108570.0,108560.0,0.68172038]
[1752036254152,0.43620718,108570.0,108560.0,0.68172038]
[1752036254740,0.45214718,108570.0,108560.0,0.68172038]
[1752036254940,0.43620718,108570.0,108560.0,0.68172038]
[1752036255150,0.47045899,108570.0,108560.0,0.76437782]
[1752036255455,0.48639899,108570.0,108560.0,0.76437782]
[1752036255751,0.47045899,108570.0,108560.0,0.76437782]
[1752036256553,0.48639899,108570.0,108560.0,0.76437782]
[1752036256753,0.48639899,108570.0,108560.0,0.76370085]
[1752036257352,0.48639899,108570.0,108560.0,0.68104341]
[1752036257555,0.48639899,108570.0,108560.0,0.76374086]
[1752036257853,0.48639899,108570.0,108560.0,0.68104341]
[1752036258054,0.48639899,108570.0,108560.0,0.76374064]
[1752036258248,0.23437771,108570.0,108560.0,0.68104341]
[1752036258448,0.48639899,108570.0,108560.0,0.68104341]
[1752036258948,0.50360113,108570.0,108560.0,0.76374279]
[1752036259448,0.48639899,108570.0,108560.0,0.65755341]
[1752036259648,0.48639899,108570.0,108560.0,0.61150291]
[1752036262858,0.48639899,108570.0,108560.0,1.24122291]
[1752036264964,0.23437771,108570.0,108560.0,1.24122291]
[1752036265166,0.23439197,108570.0,108560.0,1.24122291]
[1752036265355,0.48641325,108570.0,108560.0,1.24122291]
[1752036265866,0.45214718,108570.0,108560.0,1.24122291]
[1752036266062,0.45214718,108570.0,108560.0,0.98920163]
[1752036266563,0.45214718,108570.0,108560.0,1.24122291]
[1752036266766,0.47712718,108570.0,108560.0,1.24122291]
[1752036267164,0.47812718,108570.0,108560.0,1.24022291]
[1752036267562,0.47912718,108570.0,108560.0,1.23922291]
[1752036267863,0.47912718,108570.0,108560.0,1.34943464]
[1752036269767,0.47912718,108570.0,108560.0,1.30338414]
[1752036270764,0.47912718,108570.0,108560.0,1.28742414]
[1752036270968,0.51082718,108570.0,108560.0,1.28742414]
[1752036274368,0.48584718,108570.0,108560.0,1.28742414]
[1752036276173,0.48584718,108570.0,108560.0,1.17721241]
[1752036276767,0.48584718,108570.0,108560.0,1.28742414]
[1752036277169,0.48584718,108570.0,108560.0,1.17721241]
[1752036281979,0.54272718,108570.0,108560.0,1.17721241]
[1752036283777,0.57793084,108570.0,108560.0,1.17721241]
[1752036284378,0.57793084,108570.0,108560.0,0.82293673]
[1752036284564,0.57793084,108570.0,108560.0,0.83914673]
[1752036285677,0.57793084,108570.0,108560.0,0.65495773]
[1752036285979,0.57793084,108570.0,108560.0,0.83916053]
[1752036286180,0.54272718,108570.0,108560.0,0.83916053]
[1752036286877,0.57793021,108570.0,108560.0,0.83916053]
[1752036288474,0.32590893,108570.0,108560.0,0.83916053]
[1752036288681,0.57793021,108570.0,108560.0,0.83916053]
[1752036289276,0.32590893,108570.0,108560.0,0.83916053]
[1752036289482,0.57793021,108570.0,108560.0,0.83916053]
[1752036290182,0.32590893,108570.0,108560.0,0.83916053]
[1752036290383,0.57793021,108570.0,108560.0,0.83916053]
[1752036291084,0.32590893,108570.0,108560.0,0.83916053]
[1752036291283,0.57793021,108570.0,108560.0,0.83916053]
[1752036291686,0.57793021,108570.0,108560.0,0.86728237]
[1752036291981,0.82995149,108570.0,108560.0,0.05335957]
[1752036292176,0.82995149,108570.0,108560.0,0.02993358]
[1752036292377,0.82995149,108570.0,108560.0,0.04433255]
[1752036293884,0.82995149,108570.0,108560.0,0.05367112]
[1752036294287,0.32590893,108570.0,108560.0,0.05367112]
[1752036294587,0.57793021,108570.0,108560.0,0.05367112]
[1752036297290,0.32590893,108570.0,108560.0,0.05367112]
[1752036297589,0.82995149,108570.0,108560.0,0.05367112]
[1752036298291,0.82995149,108570.0,108560.0,0.02812255]
[1752036298996,0.1842029,108560.0,108550.0,0.89733671]
[1752036299285,0.76199546,108560.0,108550.0,0.94189705]
[1752036299480,0.76199546,108560.0,108550.0,0.92557705]
[1752036299681,0.76199546,108560.0,108550.0,0.94193705]
[1752036300286,0.76299546,108560.0,108550.0,0.94193705]
[1752036300589,0.76299546,108560.0,108550.0,0.92753763]
[1752036300794,0.76299546,108560.0,108550.0,0.94193705]
[1752036301286,1.39243546,108560.0,108550.0,0.06329235]
[1752036301492,0.9187929,108560.0,108550.0,0.06329235]
[1752036301693,1.42283546,108560.0,108550.0,0.06329235]
[1752036302994,1.42283546,108560.0,108550.0,0.24751215]
[1752036303893,1.42283546,108560.0,108550.0,0.06329235]
[1752036304284,1.42283546,108560.0,108550.0,0.24751215]
[1752036304697,1.42283546,108560.0,108550.0,0.06329235]
[1752036306794,1.42283546,108560.0,108550.0,0.24751215]
[1752036306998,1.42283546,108560.0,108550.0,0.04693235]
[1752036307198,1.42283546,108560.0,108550.0,0.23115215]
[1752036311291,1.42283546,108560.0,108550.0,0.23110307]
[1752036311696,1.42283546,108560.0,108550.0,0.04688327]
[1752036314302,1.45797245,108560.0,108550.0,0.04688327]
[1752036317302,1.45797245,108560.0,108550.0,0.23110307]
[1752036317505,1.45797245,108560.0,108550.0,0.04688327]
[1752036320895,1.42283546,108560.0,108550.0,0.04688327]
[1752036321606,1.45800217,108560.0,108550.0,0.04688327]
[1752036321998,1.42283546,108560.0,108550.0,0.03248385]
[1752036322399,1.45800506,108560.0,108550.0,0.03248385]
[1752036326397,1.45800506,108560.0,108550.0,0.01559422]
[1752036327197,0.9539625,108560.0,108550.0,0.01559422]
[1752036327402,1.45800506,108560.0,108550.0,0.01559422]
[1752036328709,1.45800688,108560.0,108550.0,0.01559422]
[1752036329613,0.95396432,108560.0,108550.0,0.01559422]
[1752036329810,1.45800688,108560.0,108550.0,0.01559422]
[1752036334112,1.45800688,108560.0,108550.0,0.01561243]
[1752036337311,1.45800688,108560.0,108550.0,0.01562229]
[1752036339411,1.71002816,108560.0,108550.0,0.01562229]
[1752036339612,1.45800688,108560.0,108550.0,0.01562229]
[1752036340212,1.45800688,108560.0,108550.0,0.01570901]
[1752036340917,1.45800483,108560.0,108550.0,0.01570901]
[1752036342115,1.71002611,108560.0,108550.0,0.01570901]
[1752036342414,1.45800483,108560.0,108550.0,0.01570901]
[1752036342921,1.71002611,108560.0,108550.0,0.01570901]
[1752036343420,1.45800483,108560.0,108550.0,0.01570901]
[1752036343821,1.71002611,108560.0,108550.0,0.01570901]
[1752036348125,1.67485674,108560.0,108550.0,0.01570901]
[1752036348326,1.709861,108560.0,108550.0,0.01570901]
[1752036356942,1.709861,108560.0,108550.0,1e-08]
[1752036357340,0.1842368,108540.0,108530.0,0.0656]
[1752036357637,0.1842368,108540.0,108530.0,0.08133]
[1752036357638,1.35603936,108540.0,108530.0,0.08133]
[1752036358638,1.35703936,108540.0,108530.0,0.08733]
[1752036360039,1.35703936,108540.0,108530.0,0.10150933]
[1752036360539,1.35703936,108540.0,108530.0,0.13094149]
[1752036362535,1.35703936,108540.0,108530.0,0.13094236]
[1752036367053,0.8529968,108540.0,108530.0,0.13094236]
[1752036367243,1.35703936,108540.0,108530.0,0.13094236]
[1752036368850,1.35703936,108540.0,108530.0,0.14487133]
[1752036371046,1.35703936,108540.0,108530.0,0.13094236]
[1752036371252,1.35703936,108540.0,108530.0,0.14487544]
[1752036372152,1.35703936,108540.0,108530.0,0.12914544]
[1752036373946,1.35703936,108540.0,108530.0,0.12918669]
[1752036374854,1.41783936,108540.0,108530.0,0.12918669]
[1752036377151,1.45286264,108540.0,108530.0,0.12918669]
[1752036379658,1.45286264,108540.0,108530.0,0.12919036]
[1752036383258,1.41783936,108540.0,108530.0,0.12919036]
[1752036384261,1.41783936,108540.0,108530.0,0.23940209]
[1752036385757,1.45287612,108540.0,108530.0,0.12919036]
[1752036386762,0.94883356,108540.0,108530.0,0.12919036]
[1752036386962,1.45287612,108540.0,108530.0,0.09669036]
[1752036387261,1.45287612,108540.0,108530.0,0.20690209]
[1752036391761,1.45287612,108540.0,108530.0,0.17380209]
[1752036392668,1.45287612,108540.0,108530.0,0.06359036]
[1752036393771,1.45287612,108540.0,108530.0,0.0341582]
[1752036394875,1.45287612,108540.0,108530.0,0.06382807]
[1752036397069,1.45287612,108540.0,108530.0,0.06400568]
[1752036401079,1.45287612,108540.0,108530.0,0.03433581]
[1752036408587,1.45287612,108540.0,108530.0,0.03433609]
[1752036409287,1.45227612,108540.0,108530.0,0.03433609]
[1752036411491,1.45227612,108540.0,108530.0,0.03437166]
[1752036417390,1.45227612,108540.0,108530.0,0.03439551]
[1752036419393,1.45227612,108540.0,108530.0,0.03439428]
[1752036420593,1.45228869,108540.0,108530.0,0.03439428]
[1752036425298,1.45228869,108540.0,108530.0,0.03440501]
[1752036430703,1.45228869,108540.0,108530.0,0.21865881]
[1752036431407,1.45228869,108540.0,108530.0,0.03440501]
[1752036432405,0.82276869,108540.0,108530.0,0.03440501]
[1752036432704,1.45212869,108540.0,108530.0,0.03440501]
[1752036433805,1.45212869,108540.0,108530.0,0.21865881]
[1752036437606,1.45212869,108540.0,108530.0,0.03440501]
[1752036437807,1.45212869,108540.0,108530.0,0.06470501]
[1752036442311,1.45212869,108540.0,108530.0,0.0647327]
[1752036443304,1.45212869,108540.0,108530.0,0.2489865]
[1752036444111,0.82276869,108540.0,108530.0,0.2489865]
[1752036444412,1.45200869,108540.0,108530.0,0.2489865]
[1752036448209,1.45200869,108540.0,108530.0,0.24896359]
[1752036450215,0.94796613,108540.0,108530.0,0.24896359]
[1752036450411,1.45200869,108540.0,108530.0,0.24896359]
[1752036450914,1.45200869,108540.0,108530.0,0.24896341]
[1752036451316,0.82276869,108540.0,108530.0,0.24896341]
[1752036451524,1.39112869,108540.0,108530.0,0.51693469]
[1752036451820,1.39112869,108540.0,108530.0,0.29771341]
[1752036454020,0.88708613,108540.0,108530.0,0.29771341]
[1752036454421,1.39112869,108540.0,108530.0,0.29771341]
[1752036456721,1.39112869,108540.0,108530.0,0.28176341]
[1752036457319,1.39112869,108540.0,108530.0,0.29771341]
[1752036457523,0.76196869,108540.0,108530.0,0.29771341]
[1752036457726,0.25945613,108540.0,108530.0,0.54973469]
[1752036458019,0.47230741,108540.0,108530.0,0.54973469]
[1752036458216,0.48869741,108540.0,108530.0,0.54973469]
[1752036458820,0.51147741,108540.0,108530.0,0.54973469]
[1752036462428,0.51147741,108540.0,108530.0,0.54956315]
[1752036462727,0.25945613,108540.0,108530.0,0.54956315]
[1752036463024,0.51147741,108540.0,108530.0,0.54956315]
[1752036464828,0.47642808,108540.0,108530.0,0.65977488]
[1752036465228,0.47642808,108540.0,108530.0,0.65977369]
[1752036465627,0.47642808,108540.0,108530.0,0.54956196]
[1752036467128,0.47642808,108540.0,108530.0,0.65989206]
[1752036467326,0.47642808,108540.0,108530.0,0.54956196]
[1752036468630,0.2244068,108540.0,108530.0,0.54956196]
[1752036468832,0.2016268,108540.0,108530.0,0.87956196]
[1752036469330,0.45364808,108540.0,108530.0,0.87956196]
[1752036469728,0.45364808,108540.0,108530.0,0.86516017]
[1752036469934,0.45364808,108540.0,108530.0,0.87956182]
[1752036470232,0.45364808,108540.0,108530.0,0.8795167]
[1752036471230,0.45364808,108540.0,108530.0,0.87951657]
[1752036472222,0.45364808,108540.0,108530.0,0.87951214]
[1752036474027,0.2016268,108540.0,108530.0,0.87951214]
[1752036474428,0.45364808,108540.0,108530.0,0.87951214]
[1752036475643,0.2016268,108540.0,108530.0,0.87951214]
[1752036475844,0.2016268,108540.0,108530.0,0.90356214]
[1752036477448,0.01739,108540.0,108530.0,1.01389224]
[1752036477641,0.01739,108540.0,108530.0,0.98984224]
[1752036477855,0.02498,108560.0,108550.0,0.1842198]
[1752036478048,0.26383382,108570.0,108560.0,0.1842029]
[1752036478239,0.31439395,108570.0,108560.0,0.4506257]
[1752036478442,0.56641523,108570.0,108560.0,0.5157257]
[1752036479247,0.5317051,108570.0,108560.0,0.49432476]
[1752036479448,0.5347051,108570.0,108560.0,0.49532476]
[1752036479754,0.5347051,108570.0,108560.0,0.24330348]
[1752036480743,0.5317051,108570.0,108560.0,0.24230348]
[1752036481551,0.5566851,108570.0,108560.0,0.24230348]
[1752036481744,0.5566851,108570.0,108560.0,0.25815348]
[1752036483953,0.5566851,108570.0,108560.0,0.47727476]
[1752036484853,0.30466382,108570.0,108560.0,0.47727476]
[1752036485154,0.5566851,108570.0,108560.0,0.22525348]
[1752036486755,0.5566851,108570.0,108560.0,0.47727476]
[1752036486954,0.5566851,108570.0,108560.0,0.22525348]
[1752036488166,0.59127124,108570.0,108560.0,0.22525348]
[1752036489456,0.59127124,108570.0,108560.0,0.85429348]
[1752036490058,0.59127124,108570.0,108560.0,0.22525348]
[1752036490259,0.59127124,108570.0,108560.0,0.85429348]
[1752036492854,0.59127124,108570.0,108560.0,0.84349442]
[1752036493056,0.59127124,108570.0,108560.0,0.85429359]
[1752036495659,0.33924996,108570.0,108560.0,0.85429359]
[1752036495852,0.59127124,108570.0,108560.0,0.85429359]
[1752036497162,0.33924996,108570.0,108560.0,0.85429359]
[1752036497458,0.59127124,108570.0,108560.0,0.85429359]
[1752036498464,0.33924996,108570.0,108560.0,0.85429359]
[1752036498660,0.59127124,108570.0,108560.0,0.85429359]
[1752036499960,0.33924996,108570.0,108560.0,0.85429359]
[1752036500160,0.59127124,108570.0,108560.0,0.85429359]
[1752036500462,0.33924996,108570.0,108560.0,0.85429359]
[1752036500660,0.59127124,108570.0,108560.0,0.85429359]
[1752036506169,0.59127124,108570.0,108560.0,0.88609359]
[1752036506966,0.5566851,108570.0,108560.0,0.88609359]
[1752036507274,0.59157227,108570.0,108560.0,0.88609359]
[1752036507568,0.59157227,108570.0,108560.0,0.89983103]
[1752036508568,0.59157227,108570.0,108560.0,0.89983166]
[1752036509159,0.59157227,108570.0,108560.0,0.8998316]
[1752036509363,0.59157227,108570.0,108560.0,1.18185288]
[1752036512266,0.59159918,108570.0,108560.0,1.18185288]
[1752036514470,0.59159918,108570.0,108560.0,1.18185382]
[1752036514671,0.59159918,108570.0,108560.0,0.92983254]
[1752036517365,0.56029918,108570.0,108560.0,0.92983254]
[1752036517869,0.3082779,108570.0,108560.0,0.92983253]
[1752036518075,0.2833579,108570.0,108560.0,0.92974253]
[1752036518375,0.53537918,108570.0,108560.0,0.92974253]
[1752036518875,0.53537918,108570.0,108560.0,1.18176381]
[1752036519569,0.48846918,108570.0,108560.0,1.18176381]
[1752036520068,0.50437918,108570.0,108560.0,1.18176381]
[1752036520268,0.48846918,108570.0,108560.0,1.18176381]
[1752036520471,0.50437918,108570.0,108560.0,1.18176381]
[1752036521583,0.48846918,108570.0,108560.0,1.18907381]
[1752036521875,0.50437918,108570.0,108560.0,1.18907381]
[1752036522071,0.50437918,108570.0,108560.0,0.93705253]
[1752036522271,0.50437918,108570.0,108560.0,1.20483381]
[1752036522470,0.2523579,108570.0,108560.0,1.20483381]
[1752036522671,0.50437918,108570.0,108560.0,1.20483381]
[1752036526376,0.50437918,108570.0,108560.0,1.20483074]
[1752036527677,0.50437918,108570.0,108560.0,0.95280946]
[1752036527977,0.50437918,108570.0,108560.0,1.20483074]
[1752036528980,0.50437918,108570.0,108560.0,1.1910918]
[1752036530082,0.50437918,108570.0,108560.0,0.93907052]
[1752036530379,0.50437918,108570.0,108560.0,1.1910918]
[1752036531480,0.50437918,108570.0,108560.0,1.20469487]
[1752036532481,0.50437918,108570.0,108560.0,1.1910918]
[1752036533470,0.50437918,108570.0,108560.0,1.2049265]
[1752036536583,0.50437918,108570.0,108560.0,1.19412733]
[1752036536887,0.50437918,108570.0,108560.0,1.20492617]
[1752036539182,0.4694651,108570.0,108560.0,1.20492617]
[1752036540082,0.4694651,108570.0,108560.0,1.17669302]
[1752036540287,0.4694651,108570.0,108560.0,1.19412797]
[1752036540480,0.4694651,108570.0,108560.0,1.20492681]
[1752036540681,0.67090011,108570.0,108560.0,1.20492681]
[1752036541280,0.70565251,108570.0,108560.0,1.20492681]
[1752036542187,0.45363123,108570.0,108560.0,1.20492681]
[1752036542489,0.70565251,108570.0,108560.0,1.20492681]
[1752036543390,0.70565251,108570.0,108560.0,1.20486082]
[1752036544892,0.70565251,108570.0,108560.0,0.95283954]
[1752036545085,0.70565251,108570.0,108560.0,1.20486082]
[1752036545483,0.63778871,108570.0,108560.0,1.4568821]
[1752036545682,0.38576743,108570.0,108560.0,1.4568821]
[1752036545886,0.38576743,108570.0,108560.0,1.9372122]
[1752036546292,0.38576743,108570.0,108560.0,1.93721152]
[1752036547090,0.38576743,108570.0,108560.0,1.93921152]
[1752036547392,0.38576743,108570.0,108560.0,1.94021152]
[1752036548086,0.20157323,108570.0,108560.0,1.94021152]
[1752036548295,0.1841788,108580.0,108570.0,0.1841859]
[1752036548592,0.56096708,108590.0,108580.0,0.184169]
[1752036548886,0.61188689,108590.0,108580.0,1.19264689]
[1752036549391,0.61188689,108590.0,108580.0,1.19264455]
[1752036549589,0.61188689,108590.0,108580.0,1.15240455]
[1752036549781,0.64498689,108590.0,108580.0,1.15240455]
[1752036550383,0.64498689,108590.0,108580.0,1.17618455]
[1752036551390,0.8484219,108590.0,108580.0,1.19583192]
[1752036552585,0.8504219,108590.0,108580.0,1.19583192]
[1752036553087,0.42433092,108590.0,108580.0,1.19583192]
[1752036553288,0.64162239,108590.0,108580.0,1.19583192]
[1752036553592,0.65581239,108590.0,108580.0,1.19583192]
[1752036553887,0.65381239,108590.0,108580.0,1.19583192]
[1752036555595,0.65381239,108590.0,108580.0,0.94381064]
[1752036555789,0.65381239,108590.0,108580.0,0.96027064]
[1752036556995,0.65381239,108590.0,108580.0,1.21229192]
[1752036560895,0.65381239,108590.0,108580.0,0.29131064]
[1752036561096,0.71781239,108590.0,108580.0,1.17189192]
[1752036562501,0.71781239,108590.0,108580.0,1.19635192]
[1752036565811,0.71781239,108590.0,108580.0,0.94433064]
[1752036566000,0.71781239,108590.0,108580.0,1.21212192]
[1752036567312,0.71781239,108590.0,108580.0,1.29456971]
[1752036567609,0.71781239,108590.0,108580.0,1.27010971]
[1752036568810,0.71781239,108590.0,108580.0,1.29456971]
[1752036572715,0.71781239,108590.0,108580.0,1.29456793]
[1752036578424,0.71781239,108590.0,108580.0,1.21212014]
[1752036579327,0.71781239,108590.0,108580.0,1.32245024]
[1752036581132,0.68541239,108590.0,108580.0,1.32245024]
[1752036581525,0.68541239,108590.0,108580.0,1.33608072]
[1752036582533,0.68541239,108590.0,108580.0,1.32245024]
[1752036587231,0.43339111,108590.0,108580.0,1.32245024]
[1752036587436,0.43339111,108590.0,108580.0,1.21212014]
[1752036587437,0.72007439,108590.0,108580.0,1.21212014]
[1752036587941,0.72007439,108590.0,108580.0,0.06060986]
[1752036588137,0.72007439,108590.0,108580.0,0.88666417]
[1752036588138,0.77719439,108590.0,108580.0,0.88666417]
[1752036589439,0.77719439,108590.0,108580.0,0.88666427]
[1752036591642,0.77719439,108590.0,108580.0,0.87309876]
[1752036593246,0.77719439,108590.0,108580.0,0.87309833]
[1752036595546,0.74253239,108590.0,108580.0,0.87309833]
[1752036596045,0.74253239,108590.0,108580.0,0.87309871]
[1752036597045,0.68541239,108590.0,108580.0,1.12511999]
[1752036597248,0.68541239,108590.0,108580.0,1.29945009]
[1752036598954,0.68541239,108590.0,108580.0,1.29945008]
[1752036599142,0.40197111,108590.0,108580.0,1.32323008]
[1752036599343,0.65399239,108590.0,108580.0,1.32323008]
[1752036600442,0.65399239,108590.0,108580.0,1.31083426]
[1752036600638,0.65399239,108590.0,108580.0,1.33900059]
[1752036601845,0.68865003,108590.0,108580.0,1.22867049]
[1752036602860,0.68865003,108590.0,108580.0,1.22967049]
[1752036604850,0.42025875,108590.0,108580.0,1.48169177]
[1752036605045,0.38560111,108590.0,108580.0,1.93202187]
[1752036605352,0.38558691,108590.0,108580.0,1.93202187]
[1752036606554,0.20143501,108590.0,108580.0,1.93202187]
[1752036606850,0.20143501,108590.0,108580.0,1.82169177]
[1752036607155,0.20143501,108590.0,108580.0,1.94583356]
[1752036607454,0.20143501,108590.0,108580.0,1.91809609]
[1752036608355,0.20243501,108590.0,108580.0,1.92009609]
[1752036608856,0.20243501,108590.0,108580.0,1.91909609]
[1752036609059,0.20243501,108590.0,108580.0,1.92109609]
[1752036609358,0.29560553,108600.0,108590.0,0.1841519]
[1752036609551,0.29560553,108600.0,108590.0,0.90078528]
[1752036609850,0.29560553,108600.0,108590.0,0.92456528]
[1752036610460,0.29560553,108600.0,108590.0,0.56556528]
[1752036610661,0.29560553,108600.0,108590.0,0.92556528]
[1752036610961,0.29560553,108600.0,108590.0,0.56556528]
[1752036611359,0.54762681,108600.0,108590.0,0.56556528]
[1752036611661,0.54762681,108600.0,108590.0,0.94556528]
[1752036611861,0.54762681,108600.0,108590.0,1.02814309]
[1752036612048,0.54762681,108600.0,108590.0,0.64814309]
[1752036612253,0.74906182,108600.0,108590.0,0.64814309]
[1752036612460,0.74906182,108600.0,108590.0,0.98814309]
[1752036612859,0.76543182,108600.0,108590.0,0.98814309]
[1752036613058,0.74906182,108600.0,108590.0,0.98814309]
[1752036614357,0.76543182,108600.0,108590.0,0.98814309]
[1752036614555,0.74906182,108600.0,108590.0,0.98814309]
[1752036614761,0.76446182,108600.0,108590.0,1.00189663]
[1752036615764,0.76446182,108600.0,108590.0,0.74987535]
[1752036616062,0.76446182,108600.0,108590.0,1.02189663]
[1752036617869,0.76446182,108600.0,108590.0,0.93931882]
[1752036619567,0.76446182,108600.0,108590.0,1.04949398]
[1752036620068,0.76446182,108600.0,108590.0,0.7974727]
[1752036620267,0.76446182,108600.0,108590.0,0.68949398]
[1752036620566,0.76446182,108600.0,108590.0,0.57931882]
[1752036621860,0.76446182,108600.0,108590.0,0.57926152]
[1752036622965,0.51244054,108600.0,108590.0,0.57926152]
[1752036623268,0.76446182,108600.0,108590.0,0.68943668]
[1752036624077,0.76446182,108600.0,108590.0,0.4374154]
[1752036624266,0.76446182,108600.0,108590.0,0.94926152]
[1752036624567,0.76446182,108600.0,108590.0,0.68943668]
[1752036624768,0.76446182,108600.0,108590.0,0.91926152]
[1752036624968,0.76446182,108600.0,108590.0,1.02943668]
[1752036625269,0.76446182,108600.0,108590.0,0.57926152]
[1752036625470,0.76446182,108600.0,108590.0,0.94926152]
[1752036625773,0.76446182,108600.0,108590.0,0.66178688]
[1752036626168,0.76446182,108600.0,108590.0,0.98178688]
[1752036626472,0.76446182,108600.0,108590.0,0.66178688]
[1752036627273,0.76446182,108600.0,108590.0,0.57926152]
[1752036627673,0.76446182,108600.0,108590.0,0.90926152]
[1752036627874,0.79706182,108600.0,108590.0,0.90926152]
[1752036628073,0.79706182,108600.0,108590.0,0.88926152]
[1752036628575,0.79706182,108600.0,108590.0,0.57926152]
[1752036628871,0.54504054,108600.0,108590.0,0.89926152]
[1752036629075,0.79706182,108600.0,108590.0,0.89926152]
[1752036629476,0.79706182,108600.0,108590.0,0.57926152]
[1752036629772,0.79706182,108600.0,108590.0,0.89081152]
[1752036629971,0.82836182,108600.0,108590.0,0.55587152]
[1752036630173,0.82836182,108600.0,108590.0,1.04604668]
[1752036630368,0.82836182,108600.0,108590.0,1.07098668]
[1752036631069,0.82836182,108600.0,108590.0,0.69098668]
[1752036631276,0.82836182,108600.0,108590.0,1.00098668]
[1752036631574,0.82836182,108600.0,108590.0,0.69098668]
[1752036632475,0.82836182,108600.0,108590.0,0.99527668]
[1752036632673,0.82836182,108600.0,108590.0,0.69098668]
[1752036633176,0.82836182,108600.0,108590.0,1.00098668]
[1752036633378,0.57634054,108600.0,108590.0,0.69096891]
[1752036633580,0.82836182,108600.0,108590.0,0.67525891]
[1752036633875,0.82836182,108600.0,108590.0,0.69096891]
[1752036634077,0.82836182,108600.0,108590.0,0.67525891]
[1752036634480,0.82836182,108600.0,108590.0,0.99525891]
[1752036634778,0.82836182,108600.0,108590.0,0.69096891]
[1752036634973,0.82836182,108600.0,108590.0,1.00096891]
[1752036635776,0.82836182,108600.0,108590.0,0.69096891]
[1752036636783,0.82836182,108600.0,108590.0,0.66602891]
[1752036638783,0.82836182,108600.0,108590.0,0.97602891]
[1752036639284,0.57634054,108600.0,108590.0,1.00096891]
[1752036639483,0.82836182,108600.0,108590.0,1.00096891]
[1752036640187,0.48425354,108600.0,108590.0,1.00096891]
[1752036640597,0.45295354,108600.0,108590.0,1.00096891]
[1752036642198,0.45295354,108600.0,108590.0,0.98728887]
[1752036642397,0.45295354,108600.0,108590.0,1.00096971]
[1752036643798,0.45295354,108600.0,108590.0,1.00090044]
[1752036645898,0.70497482,108600.0,108590.0,1.00090044]
[1752036647399,0.70497482,108600.0,108590.0,0.96209834]
[1752036648300,0.70497482,108600.0,108590.0,1.00090083]
[1752036649401,0.45295354,108600.0,108590.0,1.00090083]
[1752036649705,0.45295354,108600.0,108590.0,1.00090106]
[1752036651306,0.42035354,108600.0,108590.0,1.00090106]
[1752036651801,0.23621854,108600.0,108590.0,1.00090106]
[1752036652001,0.42035354,108600.0,108590.0,1.00090106]
[1752036652802,0.42035354,108600.0,108590.0,0.98728662]
[1752036654304,0.42035354,108600.0,108590.0,0.98728658]
[1752036654902,0.42035354,108600.0,108590.0,1.00112636]
[1752036655298,0.42035354,108600.0,108590.0,0.98728653]
[1752036655503,0.42035354,108600.0,108590.0,1.00112649]
[1752036658404,0.67237482,108600.0,108590.0,1.00112649]
[1752036660707,0.67237482,108600.0,108590.0,0.98673324]
[1752036661006,0.67237482,108600.0,108590.0,1.00113197]
[1752036662908,0.42035354,108600.0,108590.0,1.00113197]
[1752036663107,0.42110354,108600.0,108590.0,0.98404197]
[1752036663299,0.67312482,108600.0,108590.0,0.99944197]
[1752036665108,0.67312482,108600.0,108590.0,0.99937405]
[1752036666611,0.65697482,108600.0,108590.0,0.96041405]
[1752036666812,0.67312482,108600.0,108590.0,0.99937405]
[1752036668205,0.42110354,108600.0,108590.0,0.99937405]
[1752036668406,0.67312482,108600.0,108590.0,0.99936954]
[1752036668913,0.42110354,108600.0,108590.0,0.99936954]
[1752036669112,0.67312482,108600.0,108590.0,0.99936954]
[1752036672416,0.65697482,108600.0,108590.0,0.96040954]
[1752036674519,0.67256482,108600.0,108590.0,0.99896954]
[1752036676319,0.42054354,108600.0,108590.0,0.99896954]
[1752036676618,0.67256482,108600.0,108590.0,0.99896954]
[1752036677413,0.67256482,108600.0,108590.0,0.88879438]
[1752036679120,0.42054354,108600.0,108590.0,0.88879438]
[1752036679720,0.42054354,108600.0,108590.0,0.99900553]
[1752036680019,0.42054354,108600.0,108590.0,0.88879438]
[1752036680314,0.42054354,108600.0,108590.0,0.87432519]
[1752036680513,0.42054354,108600.0,108590.0,0.99892854]
[1752036683313,0.42054354,108600.0,108590.0,0.87432519]
[1752036683519,0.40316001,108600.0,108590.0,0.88871836]
[1752036688422,0.38757001,108600.0,108590.0,0.85015836]
[1752036690226,0.20343501,108600.0,108590.0,0.96037002]
[1752036690423,0.20343501,108600.0,108590.0,0.99893002]
[1752036691023,0.21902501,108600.0,108590.0,0.99893002]
[1752036691222,0.20343501,108600.0,108590.0,0.99893002]
[1752036691423,0.40316001,108600.0,108590.0,1.02663099]
[1752036692226,0.40316001,108600.0,108590.0,1.02663081]
[1752036692928,0.40316001,108600.0,108590.0,1.01293368]
[1752036694927,0.39417884,108600.0,108590.0,1.02675632]
[1752036695416,0.39417884,108600.0,108590.0,0.77473504]
[1752036695619,0.64620012,108600.0,108590.0,0.75134504]
[1752036695824,0.39417884,108600.0,108590.0,1.02675632]
[1752036696930,0.64620012,108600.0,108590.0,1.02675632]
[1752036697226,0.39417884,108600.0,108590.0,1.02675632]
[1752036697427,0.64620012,108600.0,108590.0,0.99901136]
[1752036698132,0.64620012,108600.0,108590.0,0.99888912]
[1752036699932,0.64620012,108600.0,108590.0,1.62600912]
[1752036700232,0.64620012,108600.0,108590.0,1.58744912]
[1752036700427,0.67790012,108600.0,108590.0,1.58744912]
[1752036701736,0.67790012,108600.0,108590.0,0.96032912]
[1752036702035,0.67790012,108600.0,108590.0,1.60257912]
[1752036703938,0.67790012,108600.0,108590.0,1.60251694]
[1752036705839,0.42587884,108600.0,108590.0,1.60251694]
[1752036706041,0.67790012,108600.0,108590.0,1.62518694]
[1752036707044,0.67790012,108600.0,108590.0,1.37316566]
[1752036707442,0.67790012,108600.0,108590.0,1.51501927]
[1752036709648,0.67790012,108600.0,108590.0,1.6529319]
[1752036716056,0.67790012,108600.0,108590.0,0.7158519]
[1752036716255,0.67790012,108600.0,108590.0,1.3427719]
[1752036719158,0.42587884,108600.0,108590.0,1.6727719]
[1752036719359,0.67790012,108600.0,108590.0,1.3427719]
[1752036722455,0.66231012,108600.0,108590.0,1.3049319]
[1752036722657,0.94818036,108600.0,108590.0,0.93347323]
[1752036722964,0.4741378,108600.0,108590.0,1.10283927]
[1752036723364,0.72615908,108600.0,108590.0,1.18549146]
[1752036724268,0.72615908,108600.0,108590.0,1.55549146]
[1752036724468,0.76603908,108600.0,108590.0,1.18549146]
[1752036725073,0.76603908,108600.0,108590.0,1.10283927]
[1752036726265,0.76603908,108600.0,108590.0,1.18548987]
[1752036727067,0.76603908,108600.0,108590.0,0.93346859]
[1752036727268,0.76603908,108600.0,108590.0,1.28346859]
[1752036727470,0.76603908,108600.0,108590.0,1.53548987]
[1752036728463,0.76603908,108600.0,108590.0,1.18548987]
[1752036728861,0.73219012,108600.0,108590.0,1.10283927]
[1752036729261,0.73219012,108600.0,108590.0,1.13383927]
[1752036729660,0.9842114,108600.0,108590.0,1.13383927]
[1752036729865,0.73219012,108600.0,108590.0,1.13383927]